lending/lending_fUSD_20250819
["ID","MTS","AMOUNT","RATE_DAILY","PERIOD"]
[380300093,1755645057535,-1425.0,0.00017551,2]
[380300094,1755645057545,-856.9486181,0.00017556,2]
[380300095,1755645057555,-965.0,0.00017578,2]
[380300096,1755645057565,-5888.0,0.00017596,2]
[380300097,1755645057575,-3267.8210922,0.00017605,2]
[380300098,1755645057585,-1425.0,0.00017606,2]
[380300099,1755645057596,-1425.0,0.00017619,2]
[380300100,1755645057606,-1425.0,0.00017635,2]
[380300101,1755645057618,-1425.0,0.00017636,2]
[380300102,1755645057629,-179.49,0.00017637,2]
[380300103,1755645057641,-1425.0,0.00017661,2]
[380300104,1755645057651,-500.0,0.00017673,2]
[380300105,1755645057663,-500.0,0.00017673,2]
[380300106,1755645057672,-500.0,0.00017673,2]
[380300107,1755645057682,-500.0,0.00017673,2]
[380300108,1755645057692,-555.81335514,0.00017673,2]
[380300109,1755645057702,-500.0,0.00017673,2]
[380300110,1755645057711,-500.0,0.00017673,2]
[380300111,1755645057720,-200.94901356,0.00017673,2]
[380300112,1755645057729,-500.0,0.00017673,2]
[380300113,1755645057738,-500.0,0.00017673,2]
[380300114,1755645057748,-534.43457318,0.00017673,2]
[380300115,1755645057757,-500.0,0.00017673,2]
[380300116,1755645057767,-160.01423409,0.00017673,2]
[380300117,1755645057776,-500.0,0.00017673,2]
[380300118,1755645057786,-446.08304305,0.00017673,2]
[380300119,1755645057795,-500.0,0.00017673,2]
[380300120,1755645057804,-500.0,0.00017673,2]
[380300121,1755645057813,-500.0,0.00017673,2]
[380300122,1755645057822,-173.12209304,0.00017673,2]
[380300123,1755645057831,-293.80917281,0.00017673,2]
[380300124,1755645057840,-500.0,0.00017673,2]
[380300125,1755645057849,-160.09526249,0.00017673,2]
[380300126,1755645057858,-500.00892829,0.00017673,2]
[380300127,1755645057867,-160.0183781,0.00017673,2]
[380300128,1755645057876,-500.0,0.00017673,2]
[380300129,1755645057886,-500.0,0.00017673,2]
[380300130,1755645057895,-500.0,0.00017673,2]
[380300131,1755645057905,-500.0,0.00017673,2]
[380300132,1755645057914,-500.0,0.00017673,2]
[380300133,1755645057923,-500.0,0.00017673,2]
[380300134,1755645057932,-500.0,0.00017673,2]
[380300135,1755645057941,-500.0,0.00017673,2]
[380300136,1755645057951,-527.81920081,0.00017673,2]
[380300137,1755645057960,-500.0,0.00017673,2]
[380300138,1755645057969,-500.0,0.00017673,2]
[380300139,1755645057983,-500.0,0.00017673,2]
[380300140,1755645057992,-500.0,0.00017673,2]
[380300141,1755645058001,-159.97807903,0.00017673,2]
[380300142,1755645058010,-500.0,0.00017673,2]
[380300143,1755645058020,-500.0,0.00017673,2]
[380300144,1755645058030,-500.0,0.00017673,2]
[380300145,1755645058039,-500.0,0.00017673,2]
[380300146,1755645058048,-500.0,0.00017673,2]
[380300147,1755645058058,-500.0,0.00017673,2]
[380300148,1755645058068,-500.0,0.00017673,2]
[380300149,1755645058078,-505.80945595,0.00017673,2]
[380300150,1755645058088,-500.0,0.00017673,2]
[380300151,1755645058097,-500.0,0.00017673,2]
[380300152,1755645058107,-500.0,0.00017673,2]
[380300153,1755645058116,-521.72062041,0.00017673,2]
[380300154,1755645058125,-163.79936004,0.00017673,2]
[380300155,1755645058135,-159.99790107,0.00017673,2]
[380300156,1755645058144,-1425.0,0.00017682,2]
[380300157,1755645058155,-322.6107,0.00017684,2]
[380300158,1755645058166,-160.0,0.00017684,2]
[380300159,1755645058179,-298.26089446,0.00017684,2]
[380300160,1755645058190,-546424.14781001,0.00017699,2]
[380300161,1755645058201,-284.156198,0.00017699,2]
[380300162,1755645058212,-284.156198,0.00017699,2]
[380300163,1755645058222,-151.0,0.00017699,2]
[380300164,1755645058232,-151.0,0.00017699,2]
[380300165,1755645058242,-151.0,0.00017699,2]
[380300166,1755645058252,-151.0,0.00017699,2]
[380300167,1755645058261,-151.0,0.00017699,2]
[380300168,1755645058271,-151.0,0.00017699,2]
[380300169,1755645058280,-151.0,0.00017699,2]
[380300170,1755645058289,-151.0,0.00017699,2]
[380300171,1755645058299,-151.0,0.00017699,2]
[380300172,1755645058308,-151.0,0.00017699,2]
[380300173,1755645058318,-151.408386,0.00017699,2]
[380300174,1755645058327,-151.95649,0.00017699,2]
[380300175,1755645058337,-303.536632,0.00017699,2]
[380300176,1755645058346,-303.536632,0.00017699,2]
[380300177,1755645058355,-303.536632,0.00017699,2]
[380300178,1755645058365,-303.536632,0.00017699,2]
[380300179,1755645058374,-151.0,0.00017699,2]
[380300180,1755645058384,-221.254131,0.00017699,2]
[380300181,1755645058394,-221.254131,0.00017699,2]
[380300182,1755645058404,-221.254131,0.00017699,2]
[380300183,1755645058413,-151.0,0.00017699,2]
[380300184,1755645058422,-221.254131,0.00017699,2]
[380300185,1755645058432,-151.0,0.00017699,2]
[380300186,1755645058442,-151.0,0.00017699,2]
[380300187,1755645058451,-211.950238,0.00017699,2]
[380300188,1755645058460,-211.950238,0.00017699,2]
[380300189,1755645058470,-211.950238,0.00017699,2]
[380300190,1755645058479,-211.950238,0.00017699,2]
[380300191,1755645058488,-151.0,0.00017699,2]
[380300192,1755645058499,-168.41258,0.00017699,2]
[380300193,1755645058508,-151.0,0.00017699,2]
[380300194,1755645058518,-309.369611,0.00017699,2]
[380300195,1755645058527,-309.369611,0.00017699,2]
[380300196,1755645058537,-309.369611,0.00017699,2]
[380300197,1755645058546,-309.369611,0.00017699,2]
[380300198,1755645058555,-151.0,0.00017699,2]
[380300199,1755645058564,-151.0,0.00017699,2]
[380300200,1755645058574,-151.0,0.00017699,2]
[380300201,1755645058583,-151.0,0.00017699,2]
[380300202,1755645058593,-151.0,0.00017699,2]
[380300203,1755645058602,-151.0,0.00017699,2]
[380300204,1755645058612,-1487.597972,0.00017699,2]
[380300205,1755645058621,-151.0,0.00017699,2]
[380300206,1755645058630,-1487.597972,0.00017699,2]
[380300207,1755645058639,-151.0,0.00017699,2]
[380300208,1755645058649,-151.0,0.00017699,2]
[380300209,1755645058658,-1487.597972,0.00017699,2]
[380300210,1755645058667,-317.229041,0.00017699,2]
[380300211,1755645058677,-1487.597972,0.00017699,2]
[380300212,1755645058686,-214.1431,0.00017699,2]
[380300213,1755645058695,-317.229041,0.00017699,2]
[380300214,1755645058705,-151.0,0.00017699,2]
[380300215,1755645058714,-214.1431,0.00017699,2]
[380300216,1755645058723,-151.0,0.00017699,2]
[380300217,1755645058732,-317.229041,0.00017699,2]
[380300218,1755645058742,-214.1431,0.00017699,2]
[380300219,1755645058751,-317.229041,0.00017699,2]
[380300220,1755645058760,-320.209209,0.00017699,2]
[380300221,1755645058770,-214.1431,0.00017699,2]
[380300222,1755645058779,-320.209209,0.00017699,2]
[380300223,1755645058788,-321.43622,0.00017699,2]
[380300224,1755645058797,-151.0,0.00017699,2]
[380300225,1755645058806,-151.0,0.00017699,2]
[380300226,1755645058816,-320.209209,0.00017699,2]
[380300227,1755645058827,-321.43622,0.00017699,2]
[380300228,1755645058836,-151.0,0.00017699,2]
[380300229,1755645058846,-151.0,0.00017699,2]
[380300230,1755645058855,-151.0,0.00017699,2]
[380300231,1755645058865,-320.209209,0.00017699,2]
[380300232,1755645058875,-321.43622,0.00017699,2]
[380300233,1755645058885,-151.0,0.00017699,2]
[380300234,1755645058895,-151.0,0.00017699,2]
[380300235,1755645058904,-321.43622,0.00017699,2]
[380300236,1755645058913,-151.0,0.00017699,2]
[380300237,1755645059157,-151.0,0.00017699,2]
[380300238,1755645059178,-151.0,0.00017699,2]
[380300239,1755645059187,-151.0,0.00017699,2]
[380300240,1755645059196,-151.0,0.00017699,2]
[380300241,1755645059205,-151.0,0.00017699,2]
[380300242,1755645059215,-225.007726,0.00017699,2]
[380300243,1755645059223,-413.879693,0.00017699,2]
[380300244,1755645059233,-225.007726,0.00017699,2]
[380300245,1755645059242,-413.879693,0.00017699,2]
[380300246,1755645059251,-151.0,0.00017699,2]
[380300247,1755645059259,-225.007726,0.00017699,2]
[380300248,1755645059269,-413.879693,0.00017699,2]
[380300249,1755645059278,-225.007726,0.00017699,2]
[380300250,1755645059287,-151.0,0.00017699,2]
[380300251,1755645059296,-413.879693,0.00017699,2]
[380300252,1755645059305,-151.0,0.00017699,2]
[380300253,1755645059314,-235.218043,0.00017699,2]
[380300254,1755645059324,-151.0,0.00017699,2]
[380300255,1755645059334,-442.515153,0.00017699,2]
[380300256,1755645059344,-442.515153,0.00017699,2]
[380300257,1755645059353,-442.515153,0.00017699,2]
[380300258,1755645059362,-442.515153,0.00017699,2]
[380300259,1755645059372,-151.0,0.00017699,2]
[380300260,1755645059381,-151.0,0.00017699,2]
[380300261,1755645059392,-151.0,0.00017699,2]
[380300262,1755645059402,-200.0,0.00017699,2]
[380300263,1755645059412,-200.0,0.00017699,2]
[380300264,1755645059422,-200.0,0.00017699,2]
[380300265,1755645059431,-200.0,0.00017699,2]
[380300266,1755645059441,-200.0,0.00017699,2]
[380300267,1755645059451,-200.0,0.00017699,2]
[380300268,1755645059461,-200.0,0.00017699,2]
[380300269,1755645059470,-200.0,0.00017699,2]
[380300270,1755645059479,-200.0,0.00017699,2]
[380300271,1755645059488,-200.0,0.00017699,2]
[380300272,1755645059498,-200.0,0.00017699,2]
[380300273,1755645059507,-151.0,0.00017699,2]
[380300274,1755645059518,-200.0,0.00017699,2]
[380300275,1755645059527,-200.0,0.00017699,2]
[380300276,1755645059536,-200.0,0.00017699,2]
[380300277,1755645059546,-200.0,0.00017699,2]
[380300278,1755645059555,-200.0,0.00017699,2]
[380300279,1755645059564,-200.0,0.00017699,2]
[380300280,1755645059573,-200.0,0.00017699,2]
[380300281,1755645059582,-200.0,0.00017699,2]
[380300282,1755645059592,-200.0,0.00017699,2]
[380300283,1755645059602,-200.0,0.00017699,2]
[380300284,1755645059611,-200.0,0.00017699,2]
[380300285,1755645059620,-200.0,0.00017699,2]
[380300286,1755645059630,-200.0,0.00017699,2]
[380300287,1755645059639,-200.0,0.00017699,2]
[380300288,1755645059648,-200.0,0.00017699,2]
[380300289,1755645059656,-151.0,0.00017699,2]
[380300290,1755645059666,-200.0,0.00017699,2]
[380300291,1755645059675,-200.0,0.00017699,2]
[380300292,1755645059684,-200.0,0.00017699,2]
[380300293,1755645059693,-200.0,0.00017699,2]
[380300294,1755645059702,-200.0,0.00017699,2]
[380300295,1755645059711,-200.0,0.00017699,2]
[380300296,1755645059720,-200.0,0.00017699,2]
[380300297,1755645059730,-226.135699,0.00017699,2]
[380300298,1755645059739,-211.941035,0.00017699,2]
[380300299,1755645059748,-211.941035,0.00017699,2]
[380300300,1755645059757,-211.941035,0.00017699,2]
[380300301,1755645059767,-211.941035,0.00017699,2]
[380300302,1755645059776,-151.0,0.00017699,2]
[380300303,1755645059785,-151.0,0.00017699,2]
[380300304,1755645059795,-151.0,0.00017699,2]
[380300305,1755645059804,-151.0,0.00017699,2]
[380300306,1755645059813,-151.0,0.00017699,2]
[380300307,1755645059822,-151.0,0.00017699,2]
[380300308,1755645059831,-284.293272,0.00017699,2]
[380300309,1755645059841,-187.058792,0.00017699,2]
[380300310,1755645059851,-187.058792,0.00017699,2]
[380300311,1755645059860,-466.255572,0.00017699,2]
[380300312,1755645059869,-187.058792,0.00017699,2]
[380300313,1755645059879,-151.0,0.00017699,2]
[380300314,1755645059888,-466.255572,0.00017699,2]
[380300315,1755645059897,-187.058792,0.00017699,2]
[380300316,1755645059906,-466.255572,0.00017699,2]
[380300317,1755645059916,-151.0,0.00017699,2]
[380300318,1755645059925,-194.28691,0.00017699,2]
[380300319,1755645059935,-151.0,0.00017699,2]
[380300320,1755645059944,-466.255572,0.00017699,2]
[380300321,1755645059953,-263.469567,0.00017699,2]
[380300322,1755645059962,-263.469567,0.00017699,2]
[380300323,1755645059972,-263.469567,0.00017699,2]
[380300324,1755645059985,-263.469567,0.00017699,2]
[380300325,1755645059994,-151.0,0.00017699,2]
[380300326,1755645060004,-151.0,0.00017699,2]
[380300327,1755645060013,-151.0,0.00017699,2]
[380300328,1755645060025,-151.0,0.00017699,2]
[380300329,1755645060034,-151.0,0.00017699,2]
[380300330,1755645060043,-502.149321,0.00017699,2]
[380300331,1755645060055,-502.149321,0.00017699,2]
[380300332,1755645060065,-151.0,0.00017699,2]
[380300333,1755645060075,-502.149321,0.00017699,2]
[380300334,1755645060085,-502.149321,0.00017699,2]
[380300335,1755645060094,-435.296319,0.00017699,2]
[380300336,1755645060105,-151.0,0.00017699,2]
[380300337,1755645060114,-435.296319,0.00017699,2]
[380300338,1755645060125,-151.0,0.00017699,2]
[380300339,1755645060134,-151.0,0.00017699,2]
[380300340,1755645060144,-435.296319,0.00017699,2]
[380300341,1755645060154,-8393.212576,0.00017699,2]
[380300342,1755645060164,-435.296319,0.00017699,2]
[380300343,1755645060173,-8393.212576,0.00017699,2]
[380300344,1755645060184,-8393.212576,0.00017699,2]
[380300345,1755645060194,-287.454616,0.00017699,2]
[380300346,1755645060204,-151.0,0.00017699,2]
[380300347,1755645060213,-287.454616,0.00017699,2]
[380300348,1755645060222,-8393.212576,0.00017699,2]
[380300349,1755645060232,-151.0,0.00017699,2]
[380300350,1755645060241,-287.454616,0.00017699,2]
[380300351,1755645060251,-275.829102,0.00017699,2]
[380300352,1755645060260,-151.0,0.00017699,2]
[380300353,1755645060270,-287.454616,0.00017699,2]
[380300354,1755645060280,-275.829102,0.00017699,2]
[380300355,1755645060289,-275.829102,0.00017699,2]
[380300356,1755645060298,-275.829102,0.00017699,2]
[380300357,1755645060308,-151.0,0.00017699,2]
[380300358,1755645060317,-151.0,0.00017699,2]
[380300359,1755645060327,-925.596752,0.00017699,2]
[380300360,1755645060337,-151.0,0.00017699,2]
[380300361,1755645060346,-925.596752,0.00017699,2]
[380300362,1755645060355,-151.0,0.00017699,2]
[380300363,1755645060365,-151.0,0.00017699,2]
[380300364,1755645060374,-925.596752,0.00017699,2]
[380300365,1755645060384,-151.0,0.00017699,2]
[380300366,1755645060393,-925.596752,0.00017699,2]
[380300367,1755645060403,-151.0,0.00017699,2]
[380300368,1755645060412,-151.0,0.00017699,2]
[380300369,1755645060421,-1457.668293,0.00017699,2]
[380300370,1755645060430,-1457.668293,0.00017699,2]
[380300371,1755645060439,-151.0,0.00017699,2]
[380300372,1755645060449,-1457.668293,0.00017699,2]
[380300373,1755645060458,-1457.668293,0.00017699,2]
[380300374,1755645060468,-419.804674,0.00017699,2]
[380300375,1755645060479,-419.804674,0.00017699,2]
[380300376,1755645060488,-419.804674,0.00017699,2]
[380300377,1755645060497,-419.804674,0.00017699,2]
[380300378,1755645060506,-227.079215,0.00017699,2]
[380300379,1755645060516,-210.379361,0.00017699,2]
[380300380,1755645060526,-151.0,0.00017699,2]
[380300381,1755645060535,-4541.024701,0.00017699,2]
[380300382,1755645060545,-4541.024701,0.00017699,2]
[380300383,1755645060554,-617.46186,0.00017699,2]
[380300384,1755645060564,-4541.024701,0.00017699,2]
[380300385,1755645060573,-617.46186,0.00017699,2]
[380300386,1755645060583,-4541.024701,0.00017699,2]
[380300387,1755645060592,-617.46186,0.00017699,2]
[380300388,1755645060601,-617.46186,0.00017699,2]
[380300389,1755645060610,-446.171172,0.00017699,2]
[380300390,1755645060620,-965.0,0.00017704,2]
[380300391,1755645060629,-1425.0,0.00017714,2]
[380300392,1755645060638,-1425.0,0.00017719,2]
[380300393,1755645060647,-179.49,0.00017722,2]
[380300394,1755645060657,-196.28,0.0001773,2]
[380300395,1755645060666,-5888.0,0.00017743,2]
[380300396,1755645060675,-5888.0,0.00017746,2]
[380300397,1755645060685,-1425.0,0.00017767,2]
[380300398,1755645060694,-500.0,0.00017808,2]
[380300399,1755645060703,-3387.2,0.00017808,2]
[380300400,1755645060712,-168.75726635,0.00017827,16]
[380300401,1755645060721,-183.33333333,0.00017849,2]
[380300402,1755645060731,-1425.0,0.00017863,2]
[380300403,1755645060740,-1425.0,0.00017866,2]
[380300404,1755645060748,-1425.0,0.00017887,2]
[380300405,1755645060758,-1425.0,0.00017898,2]
[380300406,1755645060767,-2486.3476636,0.000179,2]
[380300407,1755645060776,-2486.3476636,0.000179,2]
[380300408,1755645060786,-2486.3476636,0.000179,2]
[380300409,1755645060795,-2486.3476636,0.000179,2]
[380300410,1755645060805,-2486.3476636,0.000179,2]
[380300411,1755645060815,-2486.3476636,0.000179,2]
[380300412,1755645060824,-2486.3476636,0.000179,2]
[380300413,1755645060833,-2486.3476636,0.000179,2]
[380300414,1755645060843,-2486.3476636,0.000179,2]
[380300415,1755645060853,-2486.3476636,0.000179,2]
[380300416,1755645060862,-2486.3476636,0.000179,2]
[380300417,1755645060871,-2486.3476636,0.000179,2]
[380300418,1755645060881,-2486.3476636,0.000179,2]
[380300419,1755645060891,-2486.3476636,0.000179,2]
[380300420,1755645060900,-2486.3476636,0.000179,2]
[380300421,1755645060910,-2486.3476636,0.000179,2]
[380300422,1755645060919,-2486.3476636,0.000179,2]
[380300423,1755645060929,-2486.3476636,0.000179,2]
[380300424,1755645060938,-2486.3476636,0.000179,2]
[380300425,1755645060948,-2486.34,0.000179,2]
[380300426,1755645060958,-5746.46831103,0.000179,2]
[380300427,1755645060967,-5746.46831103,0.000179,2]
[380300428,1755645060980,-5746.46831103,0.000179,2]
[380300429,1755645060989,-5746.46831103,0.000179,2]
[380300430,1755645060998,-5746.46831103,0.000179,2]
[380300431,1755645061008,-5746.46831103,0.000179,2]
[380300432,1755645061017,-5746.46831103,0.000179,2]
[380300433,1755645061027,-5746.46831103,0.000179,2]
[380300434,1755645061036,-5746.46831103,0.000179,2]
[380300435,1755645061046,-5746.46831103,0.000179,2]
[380300436,1755645061055,-5746.46831103,0.000179,2]
[380300437,1755645061065,-5746.46831103,0.000179,2]
[380300438,1755645061074,-5746.46831103,0.000179,2]
[380300439,1755645061084,-5746.46831103,0.000179,2]
[380300440,1755645061093,-5746.46831103,0.000179,2]
[380300441,1755645061102,-5746.46831103,0.000179,2]
[380300442,1755645061112,-5746.46831103,0.000179,2]
[380300443,1755645061121,-5746.46831103,0.000179,2]
[380300444,1755645061131,-5746.46831103,0.000179,2]
[380300445,1755645061140,-5746.46,0.000179,2]
[380300446,1755645061151,-5888.0,0.00017905,2]
[380300447,1755645061160,-1425.0,0.00017912,2]
[380300448,1755645061170,-1425.0,0.00017928,2]
[380300449,1755645061179,-500.0,0.00017954,2]
[380300450,1755645061188,-500.0,0.00017955,2]
[380300451,1755645061198,-500.0,0.00017955,2]
[380300452,1755645061207,-500.0,0.00017955,2]
[380300453,1755645061217,-1425.0,0.00017965,2]
[380300454,1755645061226,-1425.0,0.00017969,2]
[380300455,1755645061235,-5888.0,0.00017973,2]
[380300456,1755645061245,-5888.0,0.00017982,2]
[380300457,1755645061254,-1425.0,0.00017995,2]
[380300458,1755645061263,-327.34944787,0.00017999,2]
[380300459,1755645061272,-150.0,0.00018,2]
[380300460,1755645061282,-13785.06742565,0.00018,3]
[380300461,1755645061291,-620062.36593122,0.00018,2]
[380300462,1755645062435,-31123.92788611,0.00018,2]
[380300463,1755645063689,-260.13737,0.00012344,2]
[380300464,1755645063699,-58.63873318,0.000136,2]
[380300465,1755645063711,-201.49863682,0.000136,2]
[380300466,1755645063721,-260.13737,0.000168,2]
[380300467,1755645063730,-914.75135706,0.00018,2]
[380300468,1755645066018,-285.06559965,0.00010012,2]
[380300469,1755645066145,-214.93440035,0.00010012,2]
[380300470,1755645066155,-500.0,0.00010012,2]
[380300471,1755645066164,-500.0,0.00010012,2]
[380300472,1755645066174,-500.0,0.00010012,2]
[380300473,1755645066184,-494.13443947,0.00010012,2]
[380300474,1755645066194,-426.50688288,0.00012214,2]
[380300475,1755645066204,-184.701529,0.00012344,2]
[380300476,1755645066214,-184.701529,0.00012344,2]
[380300477,1755645066223,-184.701529,0.000136,2]
[380300478,1755645066234,-184.701529,0.000136,2]
[380300479,1755645066244,-1338.601502,0.00013699,2]
[380300480,1755645066253,-29.06756839,0.000168,2]
[380300481,1755645066267,-231.06980161,0.000168,2]
[380300482,1755645066277,-184.701529,0.000168,2]
[380300483,1755645066287,-58511.23405796,0.00018,2]
[380300484,1755645068337,-184.701529,0.00012344,2]
[380300485,1755645068347,-446.171172,0.00012344,2]
[380300486,1755645068358,-44.89447735,0.00012344,2]
[380300487,1755645068378,-139.80705165,0.00012344,2]
[380300488,1755645068387,-184.701529,0.000136,2]
[380300489,1755645068397,-254.13081938,0.00013699,2]
[380300490,1755645068408,-1084.47068262,0.00013699,2]
[380300491,1755645068418,-1338.601502,0.00013699,2]
[380300492,1755645068427,-1338.601502,0.00013699,2]
[380300493,1755645068437,-1688.53942338,0.000137,2]
[380300494,1755645068448,-800.0,0.000137,2]
[380300504,1755646183211,-1970.06901104,0.00010889,2]
[380300505,1755646183236,-500.0,0.00010892,2]
[380300506,1755646183259,-552.97305853,0.00010892,2]
[380300507,1755646183284,-428.99879111,0.00010892,2]
[380300508,1755646183318,-163.02224866,0.00010892,2]
[380300509,1755646183343,-1200.0,0.00010894,2]
[380300510,1755646183368,-300.0,0.00010896,2]
[380300511,1755646183392,-300.0,0.00010897,2]
[380300512,1755646183416,-150.0,0.00010899,2]
[380300513,1755646183445,-167.38773465,0.00010899,2]
[380300514,1755646183470,-261.99525887,0.00010899,2]
[380300515,1755646183493,-689.0826,0.000109,2]
[380300516,1755646183516,-216.47129714,0.000109,2]
[380300525,1755646232197,-500.0,0.000102,3]
[380300548,1755646232523,-1100.0,0.000103,3]
[380300549,1755646232533,-1200.0,0.00010891,2]
[380300550,1755646232542,-300.0,0.00010895,2]
[380300551,1755646232551,-150.0,0.00010899,2]
[380300552,1755646232560,-16748.73451785,0.000109,2]
[380300553,1755646232571,-5056.84756215,0.000109,2]
[380300554,1755646232582,-1928.6556657,0.000109,2]
[380300555,1755646233753,-1425.0240456,0.000109,2]
[380300556,1755646233765,-2383.5820001,0.000109,2]
[380300557,1755646233777,-4440.92812,0.000109,2]
[380300561,1755646237882,-1700.0,0.000104,3]
[380300562,1755646237893,-2300.0,0.000105,3]
[380300563,1755646237903,-2900.0,0.000106,3]
[380300564,1755646237914,-2353.53729146,0.000109,2]
[380300565,1755646237923,-3223.85082332,0.000109,2]
[380300566,1755646237934,-10069.67187305,0.000109,2]
[380300567,1755646237946,-1427.89438407,0.000109,2]
[380300568,1755646237992,-13137.60341956,0.000109,2]
[380300569,1755646238001,-1163.87384358,0.000109,2]
[380300570,1755646238011,-500.0,0.00010973,2]
[380300571,1755646238020,-500.0,0.00010973,2]
[380300572,1755646238029,-500.0,0.00010973,2]
[380300573,1755646238038,-500.0,0.00010973,2]
[380300574,1755646238048,-136.73527563,0.00010973,2]
[380300575,1755646238059,-363.26472437,0.00010973,2]
[380300576,1755646238068,-500.0,0.00010973,2]
[380300577,1755646238077,-500.0,0.00010973,2]
[380300578,1755646238087,-327.44063252,0.00010973,2]
[380300581,1755646238178,-172.55936748,0.00010973,2]
[380300582,1755646238187,-500.0,0.00010973,2]
[380300583,1755646238196,-500.0,0.00010973,2]
[380300585,1755646238205,-66.67868405,0.00010973,2]
[380300589,1755646238235,-433.32131595,0.00010973,2]
[380300591,1755646238245,-500.0,0.00010973,2]
[380300593,1755646238254,-500.0,0.00010973,2]
[380300595,1755646238263,-315.77096992,0.00010993,2]
[380300597,1755646238272,-837.72156624,0.00011,2]
[380300601,1755646238299,-145705.46589365,0.00011,2]
[380300603,1755646238309,-15708.29499112,0.00011,2]
[380300605,1755646238321,-161.4,0.00011,2]
[380300607,1755646238331,-4161950.47808891,0.00011,2]
[380300804,1755646240134,-500.0,0.000107,3]
[380300806,1755646240144,-127884.67216457,0.00011,2]
[380300808,1755646240155,-250.37760822,0.00011,2]
[380300809,1755646240186,-3799.77889769,0.00011,2]
[380300810,1755646240209,-1007.65390319,0.00011,2]
[380300811,1755646240221,-346.94941179,0.00011,2]
[380300812,1755646240231,-941.68,0.00011,2]
[380300813,1755646240242,-4289.61028403,0.00011,2]
[380300815,1755646240272,-1888.0,0.00011,2]
[380300817,1755646240283,-1232.19,0.00011,2]
[380300927,1755646243182,-500.0,0.000108,3]
[380300929,1755646243191,-22529.6884,0.00011,2]
[380300947,1755646246278,-500.0,0.000109,3]
[380300948,1755646246288,-120.1195,0.00011,2]
[380300949,1755646246299,-1135.375005,0.00011,2]
[380300950,1755646246314,-718.04999918,0.00011,2]
[380300951,1755646246326,-34530.720312,0.00011,2]
[380300952,1755646246367,-2870.97047481,0.00011,2]
[380300958,1755646246815,-386.90497436,0.00011,2]
[380300959,1755646246827,-744.28031234,0.00011,2]
[380300960,1755646246838,-5887.47891872,0.00011,2]
[380300961,1755646246849,-260.63,0.00011,2]
[380300964,1755646919079,1128.77,0.000221,120]
[380301007,1755647433491,-157.5,9.598e-05,2]
[380301008,1755647433501,-250.0,9.606e-05,2]
[380301009,1755647433510,-150.0,9.888e-05,2]
[380301010,1755647433520,-150.0,9.888e-05,2]
[380301011,1755647433529,-150.0,9.888e-05,2]
[380301012,1755647433538,-150.0,9.917e-05,2]
[380301013,1755647433547,-150.0,9.945e-05,2]
[380301014,1755647433557,-150.0,9.974e-05,2]
[380301015,1755647433567,-179.68641523,0.0001,2]
[380301016,1755647433577,-150.0,0.00010003,2]
[380301017,1755647433587,-150.0,0.00010032,2]
[380301018,1755647433597,-179.68641523,0.00010061,2]
[380301019,1755647433607,-150.0,0.00010061,2]
[380301020,1755647433617,-150.0,0.0001009,2]
[380301021,1755647433627,-150.0,0.00010119,2]
[380301022,1755647433636,-150.0,0.00010148,2]
[380301023,1755647433646,-150.0,0.00010177,2]
[380301024,1755647433655,-170.0,0.00010181,7]
[380301025,1755647433664,-184.46026445,0.00010187,2]
[380301026,1755647433676,-13.71973555,0.00010187,2]